[Event "Croatian junior league 2021"]
[Site "Rabac"]
[Date "2021.04.08"]
[Round "6.5"]
[White "Colev, Ivor"]
[Black "Novosel, Marko"]
[Result "1/2-1/2"]
[ECO "B12"]
[WhiteElo "1847"]
[BlackElo "2130"]
[Annotator "NA"]
[PlyCount "63"]
[EventDate "2021.04.06"]
[EventType "swiss"]
[EventCountry "CRO"]
[SourceTitle "playchess.com"]
[Source "ChessBase"]
[SourceQuality "1"]
[TimeControl "5400+30"]

1. e4 {[%emt 0:00:00]} c6 {[%emt 0:00:00]} 2. d4 {[%emt 0:00:00]} d5 {[%emt 0:00:00]} 3. e5 {[%emt 0:00:00]} Bf5 {[%emt 0:00:00]} 4. Nf3 {[%emt 0:00:00]} e6 {[%emt 0:00:00]} 5. Be2 {[%emt 0:00:00]} h6 {[%emt 0:00:30]} 6. O-O {[%emt 0:00:07]} g5 {[%emt 0:00:45]} 7. c4 {[%emt 0:02:34]} g4 {[%emt 0:08:58]} 8. Ne1 {[%emt 0:06:36]} h5 {[%emt 0:00:36]} 9. f4 {[%emt 0:00:15]} dxc4 {[%emt 0:03:22]} 10. Bxc4 {[%emt 0:05:17]} Nd7 {[%emt 0:01:00]} 11. Bd3 {[%emt 0:01:32]} Ne7 {[%emt 0:00:30]} 12. Nc2 {[%emt 0:03:24]} Nb6 {[%emt 0:03:36]} 13. Nc3 {[%emt 0:04:19]} Nbd5 {[%emt 0:02:15]} 14. Nxd5 {[%emt 0:01:25]} Qxd5 {[%emt 0:00:23]} 15. Be3 {[%emt 0:00:28]} O-O-O {[%emt 0:01:11]} 16. Nb4 {[%emt 0:05:36]} Qa5 {[%emt 0:01:51]} 17. a3 {[%emt 0:05:26]} Bxd3 {[%emt 0:01:37]} 18. Qxd3 {[%emt 0:01:45]} Nf5 {[%emt 0:00:35]} 19. Rfd1 {[%emt 0:11:21]} h4 {[%emt 0:03:23]} 20. Qe4 {[%emt 0:07:34]} h3 {[%emt 0:03:14]} 21. g3 {[%emt 0:01:36]} Nxe3 {[%emt 0:02:33]} 22. Qxe3 {[%emt 0:00:07]} Bxb4 {[%emt 0:00:14]} 23. axb4 {[%emt 0:00:11]} Qxb4 {[%emt 0:00:12]} 24. Rxa7 {[%emt 0:04:56]} Qxb2 {[%emt 0:02:36]} 25. Qe4 {[%emt 0:03:25]} Qc3 {[%emt 0:27:14]} 26. Rb1 {[%emt 0:08:01]} Rxd4 {[%emt 0:02:11]} 27. Raxb7 {[%emt 0:01:38]} Rd1+ {[%emt 0:00:12]} 28. Rxd1 {[%emt 0:00:08]} Kxb7 {[%emt 0:00:02]} 29. Qb1+ {[%emt 0:15:32]} Kc7 {[%emt 0:00:36]} 30. Rd7+ {[%emt 0:02:13]} Kxd7 {[%emt 0:00:06]} 31. Qb7+ {[%emt 0:00:04]} Ke8 {[%emt 0:00:31]} 32. Qb8+ {[%emt 0:00:48]} 1/2-1/2

[Event "Croatian junior league 2021"]
[Site "Rabac"]
[Date "2021.04.08"]
[Round "6.6"]
[White "Klapac, Patrik"]
[Black "Perko, Bartol"]
[Result "1/2-1/2"]
[ECO "B01"]
[WhiteElo "1780"]
[BlackElo "1766"]
[Annotator "NA"]
[PlyCount "93"]
[EventDate "2021.04.06"]
[EventType "swiss"]
[EventCountry "CRO"]
[SourceTitle "playchess.com"]
[Source "ChessBase"]
[SourceQuality "1"]
[TimeControl "5400+30"]

1. e4 {[%emt 0:00:00]} d5 {[%emt 0:00:00]} 2. exd5 {[%emt 0:00:00]} Qxd5 {[%emt 0:00:00]} 3. Nf3 {[%emt 0:00:00]} Bg4 {[%emt 0:00:00]} 4. Be2 {[%emt 0:00:00]} Nc6 {[%emt 0:00:00]} 5. O-O {[%emt 0:00:40]} Nf6 {[%emt 0:01:02]} 6. d4 {[%emt 0:00:50]} e6 {[%emt 0:00:52]} 7. c4 {[%emt 0:01:42]} Qd8 {[%emt 0:01:24]} 8. Be3 {[%emt 0:00:37]} Be7 {[%emt 0:00:32]} 9. Nc3 {[%emt 0:00:10]} O-O {[%emt 0:00:31]} 10. h3 {[%emt 0:01:43]} Bf5 {[%emt 0:01:20]} 11. Nh4 {[%emt 0:00:57]} Bg6 {[%emt 0:00:06]} 12. Nxg6 {[%emt 0:00:12]} hxg6 {[%emt 0:00:02]} 13. Bf3 {[%emt 0:00:19]} Nh7 {[%emt 0:01:33]} 14. d5 {[%emt 0:04:46]} exd5 {[%emt 0:01:54]} 15. Nxd5 {[%emt 0:04:39]} Ne5 {[%emt 0:01:04]} 16. b3 {[%emt 0:01:39]} c6 {[%emt 0:04:12]} 17. Nxe7+ {[%emt 0:00:38]} Qxe7 {[%emt 0:00:02]} 18. Re1 {[%emt 0:00:33]} Rad8 {[%emt 0:02:41]} 19. Qe2 {[%emt 0:00:11]} Rfe8 {[%emt 0:02:25]} 20. Rad1 {[%emt 0:00:41]} Rxd1 {[%emt 0:02:11]} 21. Rxd1 {[%emt 0:01:28]} Nxf3+ {[%emt 0:00:28]} 22. Qxf3 {[%emt 0:00:05]} a6 {[%emt 0:01:30]} 23. c5 {[%emt 0:02:00]} Rd8 {[%emt 0:01:49]} 24. b4 {[%emt 0:07:25]} Qc7 {[%emt 0:11:05]} 25. Re1 {[%emt 0:02:20]} Re8 {[%emt 0:02:45]} 26. Rd1 {[%emt 0:06:36]} Rd8 {[%emt 0:00:10]} 27. Rxd8+ {[%emt 0:00:20]} Qxd8 {[%emt 0:00:04]} 28. Bf4 {[%emt 0:00:17]} Qd4 {[%emt 0:02:18]} 29. a3 {[%emt 0:02:20]} Nf6 {[%emt 0:01:01]} 30. g3 {[%emt 0:02:21]} a5 {[%emt 0:03:19]} 31. Qe3 {[%emt 0:09:09]} Qxe3 {[%emt 0:01:09]} 32. Bxe3 {[%emt 0:00:05]} axb4 {[%emt 0:00:08]} 33. axb4 {[%emt 0:00:02]} Nd5 {[%emt 0:00:01]} 34. Bd2 {[%emt 0:00:04]} Kf8 {[%emt 0:01:31]} 35. f4 {[%emt 0:00:19]} Ke7 {[%emt 0:00:42]} 36. Kf2 {[%emt 0:00:09]} Ke6 {[%emt 0:00:08]} 37. Ke2 {[%emt 0:01:08]} f6 {[%emt 0:00:48]} 38. Kd3 {[%emt 0:00:27]} Nc7 {[%emt 0:00:32]} 39. Ke4 {[%emt 0:00:40]} Nd5 {[%emt 0:01:04]} 40. Be1 {[%emt 0:00:49]} Ne7 {[%emt 0:01:20]} 41. Bd2 {[%emt 0:00:21]} Nf5 {[%emt 0:04:07]} 42. Be1 {[%emt 0:00:08]} Ne7 {[%emt 0:00:48]} 43. Bd2 {[%emt 0:00:06]} Nc8 {[%emt 0:00:59]} 44. Be1 {[%emt 0:01:40]} Na7 {[%emt 0:00:12]} 45. Bc3 {[%emt 0:01:46]} Nb5 {[%emt 0:00:08]} 46. Bb2 {[%emt 0:00:09]} Nc7 {[%emt 0:05:51]} 47. Bc3 {[%emt 0:00:03]} 1/2-1/2

[Event "Croatian junior league 2021"]
[Site "Rabac"]
[Date "2021.04.08"]
[Round "6.7"]
[White "Poljan, Max"]
[Black "Jakovic, Roko"]
[Result "1/2-1/2"]
[ECO "D13"]
[WhiteElo "1573"]
[BlackElo "1846"]
[Annotator "NA"]
[PlyCount "80"]
[EventDate "2021.04.06"]
[EventType "swiss"]
[EventCountry "CRO"]
[SourceTitle "playchess.com"]
[Source "ChessBase"]
[SourceQuality "1"]
[TimeControl "5400+30"]

1. c4 {[%emt 0:00:00]} c6 {[%emt 0:00:02]} 2. g3 {[%emt 0:00:00]} Nf6 {[%emt 0:00:31]} 3. Bg2 {[%emt 0:00:10]} d5 {[%emt 0:00:40]} 4. cxd5 {[%emt 0:00:10]} cxd5 {[%emt 0:00:14]} 5. d4 {[%emt 0:00:06]} Nc6 {[%emt 0:03:46]} 6. Nc3 {[%emt 0:00:50]} e6 {[%emt 0:03:39]} 7. Nf3 {[%emt 0:02:55]} a6 {[%emt 0:02:14]} 8. O-O {[%emt 0:00:56]} Be7 {[%emt 0:02:19]} 9. Bf4 {[%emt 0:02:42]} O-O {[%emt 0:01:44]} 10. Ne5 {[%emt 0:07:23]} Nxe5 {[%emt 0:07:40]} 11. Bxe5 {[%emt 0:00:06]} b5 {[%emt 0:00:55]} 12. Bxf6 {[%emt 0:10:48]} Bxf6 {[%emt 0:00:07]} 13. f4 {[%emt 0:00:51]} Qb6 {[%emt 0:05:56]} 14. e3 {[%emt 0:00:40]} Bb7 {[%emt 0:05:40]} 15. Qd2 {[%emt 0:06:11]} Rad8 {[%emt 0:04:36]} 16. b4 {[%emt 0:07:19]} Be7 {[%emt 0:06:05]} 17. a3 {[%emt 0:01:16]} a5 {[%emt 0:11:18]} 18. Rfb1 {[%emt 0:04:04]} axb4 {[%emt 0:02:05]} 19. axb4 {[%emt 0:00:02]} Rc8 {[%emt 0:01:23]} 20. Bf1 {[%emt 0:02:17]} Bc6 {[%emt 0:03:46]} 21. Qb2 {[%emt 0:03:52]} Ra8 {[%emt 0:02:22]} 22. Bd3 {[%emt 0:02:42]} g6 {[%emt 0:01:43]} 23. Qe2 {[%emt 0:12:09]} Rxa1 {[%emt 0:05:26]} 24. Rxa1 {[%emt 0:00:05]} Bxb4 {[%emt 0:00:51]} 25. Nxb5 {[%emt 0:00:20]} Rb8 {[%emt 0:04:45]} 26. Rb1 {[%emt 0:03:54]} Qa5 {[%emt 0:05:15]} 27. Nc3 {[%emt 0:00:06]} Bd6 {[%emt 0:02:58]} 28. Rxb8+ {[%emt 0:04:33]} Bxb8 {[%emt 0:00:05]} 29. Nb5 {[%emt 0:01:02]} Bxb5 {[%emt 0:01:31]} 30. Bxb5 {[%emt 0:00:05]} Qc3 {[%emt 0:01:56]} 31. Kf2 {[%emt 0:04:50]} Bd6 {[%emt 0:01:15]} 32. Ba4 {[%emt 0:03:27]} Bb4 {[%emt 0:01:00]} 33. Bd1 {[%emt 0:00:25]} Ba3 {[%emt 0:01:03]} 34. Qc2 {[%emt 0:02:20]} Qb4 {[%emt 0:02:21]} 35. Be2 {[%emt 0:01:28]} Bb2 {[%emt 0:01:12]} 36. Qd1 {[%emt 0:08:00]} Bc3 {[%emt 0:00:54]} 37. Qd3 {[%emt 0:00:02]} Be1+ {[%emt 0:00:02]} 38. Kf3 Bc3 {[%emt 0:00:04]} 39. Kf2 {[%emt 0:00:02]} Bd2 {[%emt 0:00:02]} 40. Qc3 Bxc3 1/2-1/2

[Event "Croatian junior league 2021"]
[Site "Rabac"]
[Date "2021.04.08"]
[Round "6.8"]
[White "Veverec, Ivo"]
[Black "Hergotic, Mihael"]
[Result "1-0"]
[ECO "C50"]
[WhiteElo "1786"]
[BlackElo "1476"]
[Annotator "NA"]
[PlyCount "92"]
[EventDate "2021.04.06"]
[EventType "swiss"]
[EventCountry "CRO"]
[SourceTitle "playchess.com"]
[Source "ChessBase"]
[SourceQuality "1"]
[TimeControl "5400+30"]

1. e4 {[%emt 0:00:00]} e5 {[%emt 0:00:00]} 2. Nf3 {[%emt 0:00:00]} Nc6 {[%emt 0:00:05]} 3. Bc4 {[%emt 0:00:14]} Bc5 {[%emt 0:00:39]} 4. O-O {[%emt 0:00:26]} Nf6 {[%emt 0:00:43]} 5. d3 {[%emt 0:00:29]} h6 {[%emt 0:01:15]} 6. h3 {[%emt 0:02:06]} O-O {[%emt 0:00:07]} 7. Be3 {[%emt 0:00:04]} Bb6 {[%emt 0:00:05]} 8. Nc3 {[%emt 0:00:29]} d6 {[%emt 0:00:48]} 9. Qd2 {[%emt 0:11:02]} Be6 {[%emt 0:10:19]} 10. Bb3 {[%emt 0:04:16]} Ne7 {[%emt 0:00:35]} 11. Nh2 {[%emt 0:01:27]} Ng6 {[%emt 0:00:19]} 12. Ne2 {[%emt 0:01:51]} d5 {[%emt 0:01:27]} 13. Bxb6 {[%emt 0:01:19]} axb6 {[%emt 0:01:03]} 14. exd5 {[%emt 0:00:11]} Bxd5 {[%emt 0:00:21]} 15. Bxd5 {[%emt 0:04:49]} Qxd5 {[%emt 0:00:03]} 16. Nc3 {[%emt 0:01:48]} Qc6 {[%emt 0:04:59]} 17. Nf3 {[%emt 0:03:04]} Nd5 {[%emt 0:08:53]} 18. Nxd5 {[%emt 0:06:29]} Qxd5 {[%emt 0:00:02]} 19. Qc3 {[%emt 0:01:10]} c5 {[%emt 0:04:38]} 20. a3 {[%emt 0:00:08]} Rfe8 {[%emt 0:02:07]} 21. Rfe1 {[%emt 0:01:42]} Ra4 {[%emt 0:01:02]} 22. Re3 {[%emt 0:07:38]} Nf4 {[%emt 0:01:03]} 23. Rae1 {[%emt 0:02:51]} f6 {[%emt 0:03:53]} 24. Qb3 {[%emt 0:04:15]} Qxb3 {[%emt 0:01:00]} 25. cxb3 {[%emt 0:00:06]} Raa8 {[%emt 0:00:51]} 26. d4 {[%emt 0:02:08]} cxd4 {[%emt 0:03:41]} 27. Nxd4 {[%emt 0:00:23]} Red8 {[%emt 0:00:43]} 28. Nf3 {[%emt 0:01:12]} Rd3 {[%emt 0:02:48]} 29. h4 {[%emt 0:08:04]} Rad8 {[%emt 0:09:16]} 30. g3 {[%emt 0:01:13]} Ne6 {[%emt 0:02:49]} 31. Kg2 {[%emt 0:00:15]} Nc5 {[%emt 0:03:19]} 32. b4 {[%emt 0:02:06]} Ne6 {[%emt 0:06:18]} 33. R1e2 {[%emt 0:02:08]} Rxe3 {[%emt 0:02:53]} 34. Rxe3 {[%emt 0:00:16]} Kf7 {[%emt 0:00:50]} 35. Rc3 {[%emt 0:11:06]} g5 {[%emt 0:01:10]} 36. hxg5 {[%emt 0:03:06]} hxg5 {[%emt 0:00:02]} 37. Rc2 {[%emt 0:01:07]} Kg6 {[%emt 0:00:50]} 38. Re2 {[%emt 0:02:14]} Rd3 {[%emt 0:02:25]} 39. Rxe5 {[%emt 0:01:56]} Nd8 {[%emt 0:01:53]} 40. Re3 {[%emt 0:00:39]} Rd1 {[%emt 0:00:24]} 41. Re1 {[%emt 0:02:35]} Rd5 {[%emt 0:00:04]} 42. Re2 {[%emt 0:00:12]} g4 {[%emt 0:00:16]} 43. Ne1 {[%emt 0:00:46]} Nc6 {[%emt 0:00:21]} 44. Nc2 {[%emt 0:00:52]} Ne5 {[%emt 0:01:09]} 45. Ne1 {[%emt 0:03:15]} Rd1 {[%emt 0:02:28]} 46. f3 {[%emt 0:01:41]} Kg5 {[%emt 0:00:34]} 1-0

[Event "Croatian junior league 2021"]
[Site "Rabac"]
[Date "2021.04.08"]
[Round "6.9"]
[White "Damjanovic, Stjepan"]
[Black "Begic, Domagoj"]
[Result "1/2-1/2"]
[ECO "B01"]
[WhiteElo "1890"]
[BlackElo "1706"]
[Annotator "NA"]
[PlyCount "97"]
[EventDate "2021.04.06"]
[EventType "swiss"]
[EventCountry "CRO"]
[SourceTitle "playchess.com"]
[Source "ChessBase"]
[SourceQuality "1"]
[TimeControl "5400+30"]

1. e4 {[%emt 0:00:00]} d5 {[%emt 0:00:00]} 2. exd5 {[%emt 0:00:00]} Qxd5 {[%emt 0:00:00]} 3. Nc3 {[%emt 0:00:01]} Qa5 {[%emt 0:00:06]} 4. d4 {[%emt 0:01:09]} c6 {[%emt 0:00:17]} 5. Bd3 {[%emt 0:00:57]} Nf6 {[%emt 0:00:25]} 6. h3 {[%emt 0:01:09]} g6 {[%emt 0:06:50]} 7. Nf3 {[%emt 0:01:37]} Bg7 {[%emt 0:00:18]} 8. O-O {[%emt 0:00:48]} O-O {[%emt 0:00:06]} 9. Ne2 {[%emt 0:01:38]} Nbd7 {[%emt 0:02:23]} 10. c3 {[%emt 0:01:02]} e5 {[%emt 0:03:28]} 11. dxe5 {[%emt 0:01:32]} Nxe5 {[%emt 0:00:51]} 12. Nxe5 {[%emt 0:00:14]} Qxe5 {[%emt 0:00:08]} 13. Bf4 {[%emt 0:00:19]} Qa5 {[%emt 0:00:38]} 14. Nd4 {[%emt 0:05:31]} Nd5 {[%emt 0:04:08]} 15. Bg3 {[%emt 0:02:17]} Qb6 {[%emt 0:08:02]} 16. Nb3 {[%emt 0:05:41]} Be6 {[%emt 0:06:27]} 17. Qc2 {[%emt 0:10:28]} Rad8 {[%emt 0:02:40]} 18. Rad1 {[%emt 0:00:49]} Rfe8 {[%emt 0:04:27]} 19. Nd4 {[%emt 0:02:48]} Nb4 {[%emt 0:27:39]} 20. cxb4 {[%emt 0:08:12]} Bxd4 {[%emt 0:02:01]} 21. a3 {[%emt 0:01:01]} Bf6 {[%emt 0:02:02]} 22. Rfe1 {[%emt 0:02:10]} Bd5 {[%emt 0:04:41]} 23. Rxe8+ {[%emt 0:03:51]} Rxe8 {[%emt 0:00:12]} 24. Bc4 {[%emt 0:01:02]} Bxc4 {[%emt 0:05:05]} 25. Qxc4 {[%emt 0:00:37]} Rd8 {[%emt 0:00:16]} 26. Rxd8+ {[%emt 0:07:14]} Qxd8 {[%emt 0:00:08]} 27. Qe2 {[%emt 0:02:28]} Qe7 {[%emt 0:02:47]} 28. Qd2 {[%emt 0:07:07]} Kg7 {[%emt 0:00:52]} 29. Bf4 {[%emt 0:01:58]} g5 {[%emt 0:00:50]} 30. Be3 {[%emt 0:01:11]} a6 {[%emt 0:00:24]} 31. Bc5 {[%emt 0:02:19]} Qe6 {[%emt 0:02:29]} 32. b3 {[%emt 0:03:55]} h6 {[%emt 0:02:00]} 33. Qd3 {[%emt 0:02:19]} Qd5 {[%emt 0:01:36]} 34. Qxd5 {[%emt 0:03:15]} cxd5 {[%emt 0:00:10]} 35. Kf1 {[%emt 0:01:02]} Bb2 {[%emt 0:02:10]} 36. a4 {[%emt 0:00:06]} h5 {[%emt 0:00:59]} 37. Ke2 {[%emt 0:00:19]} Kf6 {[%emt 0:00:08]} 38. Bf8 {[%emt 0:04:12]} Kf5 {[%emt 0:03:29]} 39. Ke3 {[%emt 0:04:22]} f6 {[%emt 0:00:49]} 40. Bd6 {[%emt 0:00:50]} b5 {[%emt 0:00:57]} 41. Bc5 {[%emt 0:03:31]} Ke5 {[%emt 0:00:41]} 42. g4 {[%emt 0:03:22]} hxg4 {[%emt 0:01:44]} 43. hxg4 {[%emt 0:00:00]} Bc3 {[%emt 0:00:51]} 44. f3 {[%emt 0:02:19]} Bb2 {[%emt 0:00:52]} 45. Bb6 {[%emt 0:03:35]} d4+ {[%emt 0:00:06]} 46. Ke2 {[%emt 0:00:07]} d3+ {[%emt 0:00:05]} 47. Kxd3 Kf4 48. Ke2 Bc3 {[%emt 0:00:12]} 49. Bc5 {[%emt 0:00:01]} 1/2-1/2

[Event "Croatian junior league 2021"]
[Site "Rabac"]
[Date "2021.04.08"]
[Round "6.13"]
[White "Cotic, Borna"]
[Black "Jakrlin, Mihael"]
[Result "1/2-1/2"]
[ECO "B15"]
[WhiteElo "2120"]
[BlackElo "2106"]
[Annotator "NA"]
[PlyCount "51"]
[EventDate "2021.04.06"]
[EventType "swiss"]
[EventCountry "CRO"]
[SourceTitle "playchess.com"]
[Source "ChessBase"]
[SourceQuality "1"]
[TimeControl "5400+30"]

1. e4 {[%emt 0:03:05]} c6 {[%emt 0:00:00]} 2. Nc3 {[%emt 0:00:28]} d5 {[%emt 0:00:06]} 3. d4 {[%emt 0:00:15]} dxe4 {[%emt 0:00:04]} 4. Nxe4 {[%emt 0:00:19]} Nf6 {[%emt 0:00:04]} 5. Nxf6+ {[%emt 0:00:16]} exf6 {[%emt 0:00:02]} 6. c3 {[%emt 0:00:20]} Bd6 {[%emt 0:00:06]} 7. Bd3 {[%emt 0:00:10]} O-O {[%emt 0:00:05]} 8. Ne2 {[%emt 0:00:10]} Re8 {[%emt 0:00:05]} 9. O-O {[%emt 0:00:15]} Bg4 {[%emt 0:00:22]} 10. Qc2 {[%emt 0:03:49]} Bxe2 {[%emt 0:02:21]} 11. Bxe2 {[%emt 0:00:40]} f5 {[%emt 0:00:05]} 12. Bf3 {[%emt 0:07:08]} g6 {[%emt 0:05:55]} 13. Bd2 {[%emt 0:04:39]} Nd7 {[%emt 0:03:24]} 14. Rfe1 {[%emt 0:00:28]} Qc7 {[%emt 0:00:08]} 15. h3 {[%emt 0:02:39]} Re6 {[%emt 0:03:29]} 16. Rxe6 {[%emt 0:14:09]} fxe6 {[%emt 0:00:35]} 17. Qb3 {[%emt 0:00:10]} Kf7 {[%emt 0:00:54]} 18. c4 {[%emt 0:08:15]} Re8 {[%emt 0:18:07]} 19. Bc3 {[%emt 0:04:50]} h5 {[%emt 0:06:21]} 20. Rd1 {[%emt 0:04:01]} a6 {[%emt 0:17:36]} 21. a4 {[%emt 0:16:08]} Re7 {[%emt 0:02:20]} 22. a5 {[%emt 0:01:12]} Re8 {[%emt 0:09:03]} 23. Qa2 {[%emt 0:04:58]} Nf6 {[%emt 0:00:40]} 24. Qb3 {[%emt 0:09:29]} Qe7 {[%emt 0:01:16]} 25. Qc2 {[%emt 0:02:58]} Rd8 {[%emt 0:05:05]} 26. Qc1 {[%emt 0:02:08]} 1/2-1/2

[Event "Croatian junior league 2021"]
[Site "Rabac"]
[Date "2021.04.08"]
[Round "6.14"]
[White "Troselj, Ivan"]
[Black "Simunic, Krunoslav"]
[Result "1-0"]
[ECO "A08"]
[WhiteElo "2016"]
[BlackElo "1999"]
[Annotator "NA"]
[PlyCount "65"]
[EventDate "2021.04.06"]
[EventType "swiss"]
[EventCountry "CRO"]
[SourceTitle "playchess.com"]
[Source "ChessBase"]
[SourceQuality "1"]
[TimeControl "5400+30"]

1. e4 {[%emt 0:00:00]} e6 {[%emt 0:05:46]} 2. d3 {[%emt 0:00:00]} d5 {[%emt 0:00:28]} 3. Nd2 {[%emt 0:00:00]} c5 {[%emt 0:01:05]} 4. Ngf3 {[%emt 0:00:00]} Nf6 {[%emt 0:01:27]} 5. g3 {[%emt 0:00:04]} g6 {[%emt 0:00:41]} 6. Bg2 {[%emt 0:00:36]} Bg7 {[%emt 0:00:20]} 7. O-O {[%emt 0:05:30]} O-O {[%emt 0:03:47]} 8. Re1 {[%emt 0:01:17]} Nc6 {[%emt 0:00:30]} 9. Qe2 {[%emt 0:01:00]} Qc7 {[%emt 0:07:20]} 10. Nf1 {[%emt 0:04:21]} b6 {[%emt 0:11:41]} 11. e5 {[%emt 0:04:59]} Nd7 {[%emt 0:01:18]} 12. Bf4 {[%emt 0:00:09]} Ba6 {[%emt 0:04:52]} 13. h4 {[%emt 0:01:48]} Rac8 {[%emt 0:02:38]} 14. N1h2 {[%emt 0:07:08]} Ndb8 {[%emt 0:07:37]} 15. h5 {[%emt 0:07:23]} c4 {[%emt 0:04:25]} 16. hxg6 {[%emt 0:01:52]} hxg6 {[%emt 0:02:03]} 17. Ng5 {[%emt 0:01:14]} cxd3 {[%emt 0:01:24]} 18. Qg4 {[%emt 0:00:10]} Bxe5 {[%emt 0:06:26]} 19. Qh4 {[%emt 0:12:41]} f6 {[%emt 0:00:51]} 20. Nxe6 {[%emt 0:00:07]} Qh7 {[%emt 0:09:51]} 21. Qxh7+ {[%emt 0:01:46]} Kxh7 {[%emt 0:00:04]} 22. Nxf8+ {[%emt 0:00:06]} Rxf8 {[%emt 0:00:11]} 23. cxd3 {[%emt 0:00:17]} Bxb2 {[%emt 0:02:01]} 24. Rad1 {[%emt 0:00:19]} Bc3 {[%emt 0:10:40]} 25. Re6 {[%emt 0:04:10]} Bc8 {[%emt 0:02:49]} 26. Re2 {[%emt 0:01:06]} d4 {[%emt 0:05:09]} 27. Bxb8 {[%emt 0:01:53]} Nxb8 {[%emt 0:00:01]} 28. Re7+ {[%emt 0:00:09]} Kh6 {[%emt 0:00:56]} 29. Rxa7 {[%emt 0:02:31]} Be6 {[%emt 0:01:22]} 30. f4 {[%emt 0:02:49]} Nd7 {[%emt 0:01:06]} 31. Bf3 {[%emt 0:00:43]} f5 {[%emt 0:01:18]} 32. Kf2 {[%emt 0:01:30]} Nc5 {[%emt 0:00:56]} 33. Ng4+ {[%emt 0:00:13]} 1-0

[Event "Croatian junior league 2021"]
[Site "Rabac"]
[Date "2021.04.08"]
[Round "6.15"]
[White "Baric, Marko"]
[Black "Birkic, Josip"]
[Result "0-1"]
[ECO "B31"]
[WhiteElo "1936"]
[BlackElo "1972"]
[Annotator "NA"]
[PlyCount "142"]
[EventDate "2021.04.06"]
[EventType "swiss"]
[EventCountry "CRO"]
[SourceTitle "playchess.com"]
[Source "ChessBase"]
[SourceQuality "1"]
[TimeControl "5400+30"]

1. e4 {[%emt 0:01:47]} c5 {[%emt 0:00:44]} 2. Nf3 {[%emt 0:00:11]} Nc6 {[%emt 0:00:08]} 3. Bb5 {[%emt 0:01:18]} g6 {[%emt 0:01:08]} 4. O-O {[%emt 0:01:38]} Bg7 {[%emt 0:02:05]} 5. Re1 {[%emt 0:00:05]} e5 {[%emt 0:03:51]} 6. c3 {[%emt 0:03:14]} a6 {[%emt 0:05:09]} 7. Bf1 {[%emt 0:01:07]} Nge7 {[%emt 0:02:45]} 8. d3 {[%emt 0:01:42]} O-O {[%emt 0:02:38]} 9. Be3 {[%emt 0:05:32]} b6 {[%emt 0:06:25]} 10. Na3 {[%emt 0:10:25]} d5 {[%emt 0:03:39]} 11. exd5 {[%emt 0:04:03]} Nxd5 {[%emt 0:02:13]} 12. Nc4 {[%emt 0:02:48]} Qc7 {[%emt 0:06:46]} 13. h3 {[%emt 0:11:14]} h6 {[%emt 0:00:55]} 14. Qd2 {[%emt 0:04:21]} Kh7 {[%emt 0:00:20]} 15. Qc2 {[%emt 0:12:41]} Bf5 {[%emt 0:08:56]} 16. Bd2 {[%emt 0:04:54]} Be6 {[%emt 0:07:00]} 17. a4 {[%emt 0:01:12]} Rad8 {[%emt 0:05:27]} 18. Rad1 {[%emt 0:04:12]} Nf4 {[%emt 0:06:02]} 19. Kh1 {[%emt 0:06:25]} Nd5 {[%emt 0:06:41]} 20. Bc1 {[%emt 0:01:07]} Rd7 {[%emt 0:02:04]} 21. g3 {[%emt 0:04:39]} Rfd8 {[%emt 0:01:13]} 22. Bg2 {[%emt 0:00:45]} b5 {[%emt 0:05:18]} 23. axb5 {[%emt 0:00:01]} axb5 {[%emt 0:00:03]} 24. Ncd2 {[%emt 0:03:21]} f5 {[%emt 0:01:36]} 25. Nf1 {[%emt 0:00:48]} b4 {[%emt 0:05:17]} 26. N1d2 {[%emt 0:03:45]} bxc3 {[%emt 0:01:43]} 27. bxc3 {[%emt 0:00:08]} Nb6 {[%emt 0:01:43]} 28. Nb1 {[%emt 0:01:37]} c4 {[%emt 0:01:35]} 29. d4 {[%emt 0:00:41]} e4 {[%emt 0:00:46]} 30. Bf4 {[%emt 0:00:11]} Qa7 {[%emt 0:02:04]} 31. Nh2 {[%emt 0:00:47]} Bd5 {[%emt 0:02:08]} 32. Be3 {[%emt 0:01:39]} Ra8 {[%emt 0:00:37]} 33. g4 {[%emt 0:01:44]} Qa2 {[%emt 0:01:16]} 34. Re2 {[%emt 0:00:22]} Rda7 {[%emt 0:01:01]} 35. h4 {[%emt 0:00:32]} Qxc2 {[%emt 0:01:25]} 36. Rxc2 {[%emt 0:00:01]} Ra2 {[%emt 0:00:34]} 37. Rxa2 {[%emt 0:00:28]} Rxa2 {[%emt 0:00:03]} 38. Kg1 {[%emt 0:00:44]} Na4 {[%emt 0:00:51]} 39. h5 {[%emt 0:00:59]} Bf8 {[%emt 0:00:49]} 40. hxg6+ {[%emt 0:00:26]} Kxg6 {[%emt 0:00:02]} 41. gxf5+ {[%emt 0:00:17]} Kxf5 {[%emt 0:00:02]} 42. Bh3+ {[%emt 0:00:23]} Kg6 {[%emt 0:01:43]} 43. Bd7 {[%emt 0:00:12]} Rc2 {[%emt 0:00:55]} 44. Rc1 {[%emt 0:00:27]} Rxc1+ {[%emt 0:00:16]} 45. Bxc1 {[%emt 0:00:02]} Nb6 {[%emt 0:01:15]} 46. Be8+ {[%emt 0:00:25]} Kf6 {[%emt 0:02:04]} 47. Ng4+ {[%emt 0:00:06]} Ke7 {[%emt 0:00:06]} 48. Bxc6 {[%emt 0:00:48]} Bxc6 {[%emt 0:00:02]} 49. Ba3+ {[%emt 0:01:56]} Ke8 {[%emt 0:00:42]} 50. Bxf8 {[%emt 0:00:09]} Kxf8 {[%emt 0:00:04]} 51. Nxh6 {[%emt 0:00:07]} Nd5 {[%emt 0:00:20]} 52. Nf5 {[%emt 0:00:17]} Ba4 {[%emt 0:00:41]} 53. Ne3 {[%emt 0:03:05]} Nf4 {[%emt 0:02:46]} 54. Nxc4 {[%emt 0:02:02]} Bc2 {[%emt 0:00:20]} 55. Ncd2 {[%emt 0:01:30]} Ke7 {[%emt 0:00:32]} 56. Kh2 {[%emt 0:00:20]} Kd6 {[%emt 0:00:08]} 57. Kg3 {[%emt 0:00:43]} Ne2+ {[%emt 0:00:11]} 58. Kg4 {[%emt 0:00:21]} Kd5 {[%emt 0:00:08]} 59. Na3 {[%emt 0:01:27]} Bd3 {[%emt 0:00:37]} 60. Nab1 {[%emt 0:00:46]} Bc2 {[%emt 0:00:36]} 61. Kg5 {[%emt 0:00:32]} Bd3 {[%emt 0:00:58]} 62. Kg4 {[%emt 0:00:40]} Bc2 {[%emt 0:00:07]} 63. Kh3 {[%emt 0:00:49]} Bd3 {[%emt 0:00:22]} 64. Kg2 {[%emt 0:00:12]} Nf4+ {[%emt 0:00:56]} 65. Kh2 {[%emt 0:00:18]} Ne2 {[%emt 0:00:13]} 66. Kh3 {[%emt 0:00:42]} Nf4+ {[%emt 0:00:09]} 67. Kh4 {[%emt 0:00:15]} Ne2 {[%emt 0:00:06]} 68. Kg5 {[%emt 0:00:13]} Bc2 {[%emt 0:00:19]} 69. Kf6 {[%emt 0:00:03]} Bd3 {[%emt 0:00:46]} 70. Ke7 {[%emt 0:00:46]} Nf4 {[%emt 0:00:31]} 71. Na3 {[%emt 0:01:01]} Nh3 {[%emt 0:00:27]} 0-1